[Event "LEM Niedersachsen-Meister 2025"]
[Site "Verden"]
[Date "2025.01.04"]
[Round "5.8"]
[White "Lichtmannecker, Daniel"]
[Black "Pubantz, Jan"]
[Result "1-0"]
[ECO "B12"]
[WhiteElo "2171"]
[BlackElo "2339"]
[Annotator "TA"]
[PlyCount "65"]
[EventDate "2024.12.27"]
[EventType "swiss"]
[EventCountry "GER"]
[SourceTitle "playchess.com"]
[Source "ChessBase"]
[SourceQuality "1"]
[TimeControl "40/5400+30:1800+30"]

{[%evp 10,65,14,12,28,4,22,8,22,17,30,-5,14,24,43,35,41,52,69,55,177,175,235,229,362,337,338,307,335,320,299,246,362,362,431,437,460,498,497,474,499,496,495,489,577,494,468,487,590,569,549,571,623,611,608,605,682,591]} 1. e4 {[%emt 0:08:04]} c6 {[%emt 0:00:42]} 2. d4 {[%emt 0:00:14]} d5 {[%emt 0:00:06]} 3. e5 {[%emt 0:00:06]} Bf5 {[%emt 0:00:08]} 4. Nd2 {[%emt 0:00:08]} e6 {[%emt 0:01:28]} 5. Nb3 {[%emt 0:00:09]} Nd7 {[%emt 0:02:08]} 6. Nf3 {[%emt 0:01:35]} Qc7 {[%emt 0:00:08]} 7. Be3 {[%emt 0:00:34]} h6 {[%emt 0:14:27]} 8. Be2 {[%emt 0:03:50]} Ne7 {[%emt 0:00:35]} 9. a4 {[%emt 0:03:22]} Be4 {[%emt 0:09:55]} 10. a5 {[%emt 0:07:49]} a6 {[%emt 0:00:41]} 11. O-O {[%emt 0:06:50]} c5 {[%emt 0:02:49]} 12. Nxc5 {[%emt 0:05:57]} (12. dxc5 Nf5 $11) 12... Nxc5 {[%emt 0:00:11]} 13. dxc5 {[%emt 0:00:06]} Nf5 {[%emt 0:11:35][%cal Of5e3]} 14. b4 {[%emt 0:04:02]} Bxf3 {[%emt 0:02:19]} ({Black should try} 14... g5 $14) 15. Bxf3 $18 {[%emt 0:01:20][%cal Oc2c4]} Be7 {[%emt 0:07:15]} (15... O-O-O 16. Re1 g5) 16. c4 {[%emt 0:09:07]} Nxe3 {[%emt 0:19:48]} (16... d4 {was called for.}) 17. fxe3 {[%emt 0:00:12]} O-O {[%emt 0:01:52]} 18. cxd5 {[%emt 0:02:12]} exd5 {[%emt 0:00:24]} 19. Qxd5 {[%emt 0:01:49]} Bg5 {[%emt 0:00:48]} 20. Rae1 {[%emt 0:08:02]} Rab8 {[%emt 0:02:12]} (20... Rfe8 $142 21. Qxb7 Qxe5) 21. Qd6 {[%emt 0:03:04]} Qd8 {[%emt 0:02:49]} 22. Bd5 {[%emt 0:01:17]} Be7 {[%emt 0:02:30]} 23. Qxd8 {[%emt 0:00:23]} Bxd8 {[%emt 0:00:01]} 24. e6 {[%emt 0:02:13][%cal Be5e6,Be6f7][%mdl 32]} Bf6 {[%emt 0:00:53][%cal Bd8f6,Bf6c3,Bc3d4][%mdl 32]} 25. exf7+ {[%emt 0:00:30]} Kh8 {[%emt 0:00:04]} 26. e4 {[%emt 0:00:48] Threatens to win with e5.} Bc3 {[%emt 0:00:15]} 27. Rb1 {[%emt 0:00:31]} g6 {[%emt 0:00:29]} 28. Rf3 {[%emt 0:04:01]} Bd4+ {[%emt 0:00:23]} 29. Kf1 {[%emt 0:00:44]} Kg7 {[%emt 0:01:12]} 30. Ke2 {[%emt 0:00:52]} Rfd8 {[%emt 0:02:20]} 31. Kd3 {[%emt 0:01:32]} Be5 {[%emt 0:01:47]} 32. h3 {[%emt 0:00:39]} Rd7 {[%emt 0:00:23]} 33. Kc4 {[%emt 0:02:48]} 1-0

[Event "LEM Niedersachsen-Meister 2025"]
[Site "Verden"]
[Date "2025.01.04"]
[Round "5.9"]
[White "Lammers, Markus"]
[Black "Peters, Tom"]
[Result "1-0"]
[ECO "D30"]
[WhiteElo "2304"]
[BlackElo "2166"]
[Annotator "TA"]
[PlyCount "33"]
[EventDate "2024.12.27"]
[EventType "swiss"]
[EventCountry "GER"]
[SourceTitle "playchess.com"]
[Source "ChessBase"]
[SourceQuality "1"]
[TimeControl "40/5400+30:1800+30"]

{[%evp 9,33,9,8,6,10,10,8,6,22,37,39,58,58,42,128,145,135,17,0,5,11,16,44,35,59,50]} 1. d4 {[%emt 0:00:04]} Nf6 {[%emt 0:00:08]} 2. c4 {[%emt 0:00:23]} e6 {[%emt 0:00:15]} 3. Nf3 {[%emt 0:00:09]} d5 {[%emt 0:00:44]} 4. e3 {[%emt 0:00:15][%cal Be2e3,Be3e4,Be4d5][%mdl 32]} Be7 {[%emt 0:00:53]} 5. b3 {[%emt 0:00:26]} O-O {[%emt 0:01:19]} 6. Bd3 {[%emt 0:00:05]} c5 {[%emt 0:02:29]} 7. O-O {[%emt 0:00:07]} dxc4 {[%emt 0:02:46]} 8. bxc4 {[%emt 0:00:15]} b6 {[%emt 0:03:04]} 9. e4 {[%emt 0:01:19]} Bb7 {[%emt 0:03:37]} ({Much weaker is} 9... cxd4 $6 10. e5 $16) 10. d5 {[%emt 0:01:12]} exd5 {[%emt 0:01:57]} 11. cxd5 {[%emt 0:01:12]} Nxd5 {[%emt 0:07:45]} 12. exd5 $16 {[%emt 0:01:28]} Bf6 {[%emt 0:01:26][%cal Oh7h6] [#] ...h6! would now be deadly.} 13. Nc3 $1 {[%emt 0:03:26]} Bxc3 $11 {[%emt 0:01:03]} 14. Bxh7+ $1 {[%emt 0:00:07]} Kh8 {[%emt 0:03:30] [#]} 15. Be4 $1 {[%emt 0:10:19][%cal Of3g5] aiming for Ng5!.} Bxa1 {[%emt 0:05:49]} (15... Kg8 16. Rb1) 16. Ng5 {[%emt 0:01:49]} g6 $1 {[%emt 0:01:25] Inhibits Qh5+.} 17. Qg4 $1 {[%emt 0:00:05] Dodges Nd7} 1-0

[Event "LEM Niedersachsen-Meister 2025"]
[Site "Verden"]
[Date "2025.01.04"]
[Round "5.10"]
[White "Bargsten, Justus"]
[Black "Plischki, Sebastian"]
[Result "1/2-1/2"]
[ECO "B53"]
[WhiteElo "2228"]
[BlackElo "2323"]
[Annotator "TA"]
[PlyCount "208"]
[EventDate "2024.12.27"]
[EventType "swiss"]
[EventCountry "GER"]
[SourceTitle "playchess.com"]
[Source "ChessBase"]
[SourceQuality "1"]
[TimeControl "40/5400+30:1800+30"]

{[%evp 105,208,-61,-61,-61,-61,-61,-61,-61,-61,-61,-61,-61,-61,-62,-61,-61,-61,-61,-61,-61,-61,-61,-61,-61,-61,-61,-61,-61,-61,-61,-61,-61,-61,-61,0,0,0,-8,-8,-8,-8,-8,0,0,0,0,0,0,0,0,0,0,0,0,0,0,0,0,0,-8,0,-8,-8,-8,-8,-8,-8,-8,0,-8,-8,-8,-8,-8,0,0,0,-8,0,-8,-8,-8,-8,-8,-8,-8,0,0,0,-8,0,0,0,0,0,0,0,0,0,0,0,0,0,0,0]} 1. e4 {[%emt 0:00:02]} c5 {[%emt 0:00:13]} 2. Nf3 {[%emt 0:00:05]} d6 {[%emt 0:00:04]} 3. d4 {[%emt 0:00:09]} cxd4 {[%emt 0:00:06]} 4. Qxd4 {[%emt 0:00:08]} Nc6 {[%emt 0:00:59]} 5. Bb5 {[%emt 0:00:26]} Bd7 {[%emt 0:00:38]} 6. Qd3 {[%emt 0:00:06]} Nf6 {[%emt 0:01:23]} 7. c4 {[%emt 0:00:24]} g6 {[%emt 0:00:19]} 8. Nc3 {[%emt 0:00:06]} Bg7 {[%emt 0:00:05]} 9. O-O {[%emt 0:00:06]} O-O {[%emt 0:00:07]} 10. h3 {[%emt 0:00:06]} a6 {[%emt 0:01:41]} 11. Bxc6 {[%emt 0:00:07]} Bxc6 {[%emt 0:00:09]} 12. Nd4 {[%emt 0:00:04]} Nd7 {[%emt 0:01:44]} 13. Be3 {[%emt 0:00:17]} Nc5 {[%emt 0:01:49]} 14. Qc2 {[%emt 0:02:00]} Ne6 {[%emt 0:03:49]} 15. Rfd1 {[%emt 0:08:53]} Qa5 {[%emt 0:06:34]} 16. Rac1 {[%emt 0:15:50]} Rac8 {[%emt 0:08:15]} 17. Qd2 {[%emt 0:03:18]} Rfe8 {[%emt 0:01:58]} 18. Nxe6 {[%emt 0:07:08]} fxe6 {[%emt 0:00:07]} 19. Bd4 {[%emt 0:00:04]} Bxd4 {[%emt 0:09:36]} 20. Qxd4 {[%emt 0:00:05]} Red8 {[%emt 0:05:17]} 21. a3 {[%emt 0:05:26]} Be8 {[%emt 0:03:28]} 22. Nb1 {[%emt 0:11:58]} Qc5 {[%emt 0:15:52]} 23. Rc3 {[%emt 0:05:14]} Qxd4 {[%emt 0:03:18]} 24. Rxd4 {[%emt 0:00:02]} e5 {[%emt 0:00:40]} 25. Rd1 {[%emt 0:00:25]} Rd7 {[%emt 0:00:28]} 26. Rdc1 {[%emt 0:04:38]} Rdc7 {[%emt 0:00:18]} 27. b3 {[%emt 0:00:53]} Kf8 {[%emt 0:07:44]} 28. a4 {[%emt 0:01:16]} e6 {[%emt 0:01:31]} 29. Kf1 {[%emt 0:01:25]} Ke7 {[%emt 0:00:08]} 30. Ke2 {[%emt 0:00:05]} Bc6 {[%emt 0:04:34]} 31. f3 {[%emt 0:00:55]} b5 {[%emt 0:03:51]} 32. cxb5 {[%emt 0:03:51]} axb5 {[%emt 0:00:07]} 33. axb5 {[%emt 0:00:57]} Bxb5+ {[%emt 0:00:06]} 34. Kd2 {[%emt 0:00:09]} Kd7 {[%emt 0:05:09]} 35. Rxc7+ {[%emt 0:00:40]} Rxc7 {[%emt 0:00:05]} 36. Nc3 {[%emt 0:00:30]} Bc6 {[%emt 0:00:24]} 37. b4 {[%emt 0:03:12]} d5 {[%emt 0:01:18]} 38. b5 {[%emt 0:01:44]} Bb7 {[%emt 0:00:06]} 39. Ra1 {[%emt 0:01:31]} Kd6 {[%emt 0:06:26]} 40. Kd3 {[%emt 0:02:14]} g5 {[%emt 0:06:57]} 41. h4 {[%emt 0:35:45]} gxh4 {[%emt 0:12:07]} 42. Rh1 {[%emt 0:00:00]} Rg7 {[%emt 0:07:13]} 43. Rxh4 {[%emt 0:00:00]} Rxg2 {[%emt 0:00:10]} 44. Rxh7 {[%emt 0:00:00]} Bc8 {[%emt 0:00:12]} 45. Rh6 {[%emt 0:00:00]} d4 {[%emt 0:01:02]} 46. Ne2 {[%emt 0:00:00]} Bd7 {[%emt 0:00:12]} 47. Nxd4 {[%emt 0:00:00]} exd4 {[%emt 0:00:06]} 48. Kxd4 {[%emt 0:00:00]} Bxb5 {[%emt 0:00:18]} 49. f4 {[%emt 0:00:00]} Rd2+ {[%emt 0:01:27]} 50. Kc3 {[%emt 0:00:00]} Rd3+ {[%emt 0:00:14]} 51. Kb4 {[%emt 0:00:00]} Bd7 {[%emt 0:01:56]} 52. f5 {[%emt 0:00:00]} Rd4+ {[%emt 0:00:25]} 53. Kc3 {[%emt 0:00:00]} Rxe4 {[%emt 0:00:05]} 54. fxe6 {[%emt 0:00:00]} Bxe6 {[%emt 0:00:05]} 55. Kd3 {[%emt 0:00:00]} Rg4 {[%emt 0:00:15]} 56. Ke3 {[%emt 0:00:00]} Ke5 {[%emt 0:00:07]} 57. Rh8 {[%emt 0:00:00]} Rg3+ {[%emt 0:00:08]} 58. Kf2 {[%emt 0:00:00]} Rb3 {[%emt 0:00:17]} 59. Re8 {[%emt 0:00:00]} Kf5 {[%emt 0:00:35]} 60. Ke2 {[%emt 0:00:00]} Bd5 {[%emt 0:01:30]} 61. Kd2 {[%emt 0:00:00]} Be4 {[%emt 0:00:20]} 62. Re7 {[%emt 0:00:00]} Kf4 {[%emt 0:00:25]} 63. Re8 {[%emt 0:00:00]} Rd3+ {[%emt 0:00:44]} 64. Ke2 {[%emt 0:00:00]} Rc3 {[%emt 0:00:33]} 65. Rf8+ {[%emt 0:00:00]} Bf5 {[%emt 0:00:07]} 66. Rd8 {[%emt 0:00:00]} Rc6 {[%emt 0:04:09]} 67. Rd4+ {[%emt 0:03:45]} Be4 {[%emt 0:00:26]} 68. Rd8 {[%emt 0:00:14]} Rc2+ {[%emt 0:00:56]} 69. Rd2 {[%emt 0:00:27]} Rc8 $1 {[%emt 0:00:03]} 70. Rd7 $1 {[%emt 0:01:02]} Rc2+ {[%emt 0:00:26]} 71. Rd2 {[%emt 0:00:06]} Rc1 {[%emt 0:00:03]} 72. Rd4 {[%emt 0:01:24]} Rh1 {[%emt 0:00:27]} 73. Kd2 {[%emt 0:00:50]} Ke5 {[%emt 0:00:15]} 74. Rb4 {[%emt 0:01:35]} Rh2+ {[%emt 0:00:36]} 75. Ke3 {[%emt 0:00:45]} Rh3+ {[%emt 0:00:07]} 76. Kd2 {[%emt 0:00:44]} Rd3+ {[%emt 0:01:44]} 77. Ke2 {[%emt 0:00:12]} Kf4 {[%emt 0:00:14]} 78. Ra4 {[%emt 0:00:41]} Rb3 {[%emt 0:04:07]} 79. Kd2 {[%emt 0:00:25]} Ke5 {[%emt 0:00:19]} 80. Ra7 {[%emt 0:02:26]} Bc6 {[%emt 0:01:38]} 81. Rh7 {[%emt 0:01:32]} Kd4 {[%emt 0:00:22]} 82. Kc2 {[%emt 0:01:10]} Rb8 {[%emt 0:01:03]} 83. Rc7 {[%emt 0:02:44]} Be4+ {[%emt 0:00:07]} 84. Kc1 {[%emt 0:01:11]} Rb1+ {[%emt 0:00:03]} 85. Kd2 {[%emt 0:00:09]} Rb2+ {[%emt 0:00:02]} 86. Kc1 {[%emt 0:00:27]} Rg2 {[%emt 0:00:12]} 87. Rd7+ {[%emt 0:00:39]} Ke3 {[%emt 0:00:13]} 88. Rd2 {[%emt 0:01:46]} Rg5 {[%emt 0:01:12]} 89. Rh2 {[%emt 0:01:31]} Rb5 {[%emt 0:00:27]} 90. Rh3+ {[%emt 0:00:45]} Kd4 {[%emt 0:03:08]} 91. Rh8 {[%emt 0:01:49]} Bd3 {[%emt 0:00:52]} 92. Rc8 {[%emt 0:02:32]} Ke3 {[%emt 0:00:36]} 93. Kd1 $1 {[%emt 0:02:23]} (93. Rc3 $2 Rb1#) 93... Rb2 {[%emt 0:01:29]} 94. Re8+ {[%emt 0:01:22]} Be4 {[%emt 0:01:41]} ({Resist} 94... Kf2 95. Re7 $15) 95. Rc8 $1 {[%emt 0:00:24]} Rh2 {[%emt 0:00:42]} 96. Kc1 {[%emt 0:00:31]} Bd3 {[%emt 0:00:15]} 97. Rc7 {[%emt 0:01:22]} Rf2 {[%emt 0:00:21]} 98. Rc8 {[%emt 0:02:33]} ({Of course not} 98. Rc3 Ra2 $15) 98... Kd4 {[%emt 0:00:06]} 99. Ra8 {[%emt 0:02:54]} Bc4 {[%emt 0:02:55]} 100. Ra3 {[%emt 0:00:34]} Kc5 {[%emt 0:00:19]} 101. Rg3 {[%emt 0:00:56]} Kb4 {[%emt 0:00:10]} 102. Kd1 {[%emt 0:00:30]} Ra2 {[%emt 0:00:47]} 103. Ke1 {[%emt 0:00:30]} Re2+ {[%emt 0:00:07]} 104. Kd1 {[%emt 0:00:19]} Kc5 {[%emt 0:00:23]} 1/2-1/2

[Event "LEM Niedersachsen-Meister 2025"]
[Site "Verden"]
[Date "2025.01.04"]
[Round "5.11"]
[White "Drygala, Lars"]
[Black "Meiwes, Thore"]
[Result "1/2-1/2"]
[ECO "D02"]
[WhiteElo "2067"]
[BlackElo "2120"]
[Annotator "TA"]
[PlyCount "120"]
[EventDate "2024.12.27"]
[EventType "swiss"]
[EventCountry "GER"]
[SourceTitle "playchess.com"]
[Source "ChessBase"]
[SourceQuality "1"]
[TimeControl "40/5400+30:1800+30"]

{[%evp 9,120,-15,0,-23,28,0,4,-58,0,0,0,-6,0,0,0,0,0,-10,29,0,0,9,35,29,26,0,0,-13,31,-2,43,29,41,17,26,0,14,-14,35,-40,-18,-27,-16,-20,-17,-11,-14,-18,-4,-4,0,-1,0,0,0,0,0,0,0,0,0,0,0,0,0,0,0,0,0,0,0,-1,0,0,0,0,0,0,0,0,0,0,0,0,0,-7,0,0,0,-8,0,0,0,-45,0,-8,0,0,0,0,0,0,0,0,0,0,0,0,0,0,0,0,0]} 1. d4 {[%emt 0:00:04]} Nf6 {[%emt 0:00:03]} 2. Nf3 {[%emt 0:00:09]} d5 {[%emt 0:00:04]} 3. Bf4 {[%emt 0:00:51]} c5 {[%emt 0:00:05]} 4. c3 {[%emt 0:00:07]} Nc6 {[%emt 0:00:06]} 5. Nbd2 {[%emt 0:02:01]} Qb6 {[%emt 0:00:51]} 6. Qb3 {[%emt 0:00:44]} c4 {[%emt 0:01:26]} (6... cxd4 $142 7. Nxd4 e5 (7... Nxd4 8. Qxb6 Nc2+ 9. Kd1 $17) 8. Qxb6 axb6 9. Nxc6 exf4) 7. Qxb6 {[%emt 0:09:06]} axb6 {[%emt 0:00:03] [#]} 8. e4 {[%emt 0:00:31]} b5 {[%emt 0:06:10]} (8... dxe4 $15 9. Ne5 b5) 9. exd5 $11 {[%emt 0:05:44]} Nxd5 {[%emt 0:00:17]} 10. Bg3 {[%emt 0:00:11]} Bf5 {[%emt 0:04:43]} 11. Be2 {[%emt 0:08:11][%cal Oa2a4]} e6 {[%emt 0:00:22]} 12. O-O {[%emt 0:01:19][%cal Oa2a4]} Be7 {[%emt 0:00:12]} 13. a4 {[%emt 0:03:27]} bxa4 {[%emt 0:07:53]} 14. Bxc4 {[%emt 0:03:40]} O-O {[%emt 0:01:00]} 15. Nh4 {[%emt 0:03:08][%cal Bf3h4,Bh4f5,Bf5d6][%mdl 32]} Bg4 {[%emt 0:13:46]} 16. h3 {[%emt 0:02:10]} Bh5 {[%emt 0:03:20]} 17. Bxd5 {[%emt 0:02:37]} (17. Nf5 $5) 17... exd5 {[%emt 0:00:22]} 18. Nf5 {[%emt 0:00:26]} Bf6 {[%emt 0:01:09]} 19. Rfe1 {[%emt 0:04:55]} Bg6 {[%emt 0:01:45]} 20. Nd6 {[%emt 0:01:19]} b6 $1 {[%emt 0:01:17]} 21. Nb5 {[%emt 0:01:35]} Ra5 {[%emt 0:11:04]} 22. Na3 {[%emt 0:04:14]} h6 {[%emt 0:01:53]} 23. Bd6 {[%emt 0:02:40]} Rc8 {[%emt 0:01:00]} (23... Rd8 $11 {feels stronger.} 24. Bc7 Rd7 25. Re8+ (25. Bxb6 Ra8 $11) 25... Kh7 26. Bxb6 Ra6) 24. b4 {[%emt 0:03:24]} (24. Nf1 $14) 24... axb3 {[%emt 0:01:28]} 25. Nxb3 {[%emt 0:02:38]} Ra4 {[%emt 0:00:57]} 26. Nb5 {[%emt 0:00:44] Wards off Na7} Rxa1 {[%emt 0:04:19]} 27. Rxa1 {[%emt 0:00:29]} Bd3 {[%emt 0:01:35]} 28. Nc7 {[%emt 0:02:28]} Bd8 {[%emt 0:02:07] A strong pair of Bishops.} 29. Ra8 $1 {[%emt 0:04:12]} (29. Nxd5 Bc4 30. Nxb6 Bxb6 $19) 29... Rxa8 {[%emt 0:00:14]} 30. Nxa8 {[%emt 0:00:05]} Na5 {[%emt 0:13:44]} 31. Nd2 {[%emt 0:05:03]} Nc4 {[%emt 0:07:01]} 32. Nxc4 {[%emt 0:00:25]} Bxc4 {[%emt 0:00:12]} 33. Bc7 {[%emt 0:01:17]} Bxc7 {[%emt 0:00:13]} 34. Nxc7 {[%emt 0:00:04][%mdl 4096] Endgame. KB-KN} Kf8 {[%emt 0:00:09] [#] Strongly threatening ...Ke7.} 35. Na8 $1 {[%emt 0:00:10]} Ke7 {[%emt 0:05:31] Threatens to win with ...Kd6.} 36. Nxb6 {[%emt 0:00:07]} Bb3 {[%emt 0:00:04] ...Kd6 is the strong threat.} 37. c4 $1 {[%emt 0:01:06]} Bxc4 {[%emt 0:02:10] aiming for ...Bb3.} (37... dxc4 $5 38. Nd5+ $8 Ke6 $11) 38. Na4 {[%emt 0:01:08]} Kd6 {[%emt 0:00:25]} 39. f4 {[%emt 0:01:01]} Kc6 {[%emt 0:00:49]} 40. Nc3 {[%emt 0:00:16]} Kb6 {[%emt 0:02:11]} 41. Kf2 {[%emt 0:30:16]} Ka5 {[%emt 0:30:31]} 42. Ke3 {[%emt 0:01:15]} Kb4 {[%emt 0:00:12]} 43. Nd1 {[%emt 0:00:09]} Bf1 {[%emt 0:01:07]} 44. Kf2 {[%emt 0:00:17]} Bd3 {[%emt 0:00:33]} 45. Ke3 {[%emt 0:01:05]} Be4 {[%emt 0:00:35]} 46. g3 {[%emt 0:01:31]} Bc2 {[%emt 0:02:33]} 47. Nf2 {[%emt 0:00:15]} Kc3 {[%emt 0:00:48]} 48. Ng4 {[%emt 0:01:04]} f6 {[%emt 0:00:10]} 49. Nh2 {[%emt 0:02:41]} Be4 {[%emt 0:01:05]} 50. h4 {[%emt 0:00:29]} Bg2 {[%emt 0:03:26]} 51. Kf2 {[%emt 0:00:25]} Be4 {[%emt 0:00:18]} 52. Ke3 {[%emt 0:00:05] The position is equal.} Kc2 {[%emt 0:00:43]} 53. g4 {[%emt 0:07:37]} g5 {[%emt 0:01:21]} 54. hxg5 {[%emt 0:00:09]} hxg5 {[%emt 0:00:11]} 55. fxg5 {[%emt 0:00:52]} fxg5 {[%emt 0:00:08]} 56. Nf1 {[%emt 0:00:10]} Bg2 {[%emt 0:00:00]} 57. Ng3 {[%emt 0:00:00]} Bh3 {[%emt 0:00:00]} 58. Kf3 {[%emt 0:00:00]} Kd3 {[%emt 0:00:00]} 59. Nf5 {[%emt 0:00:00]} Kc3 {[%emt 0:00:00]} 60. Ng7 {[%emt 0:00:00]} Kxd4 {[%emt 0:00:00] Weighted Error Value: White=0.10 (very precise) /Black=0.11 (very precise) .  Mistake:       	White=2     	Black=3      Inaccurate:     	White=6     	Black=5      OK:         	White=26    	Black=18     Best:        	White=3     	---        Strong:       	White=3     	Black=1} 1/2-1/2

[Event "LEM Niedersachsen-Meister 2025"]
[Site "Verden"]
[Date "2025.01.04"]
[Round "5.12"]
[White "Garbuszus, Juergen"]
[Black "ter Stal, Lars"]
[Result "1-0"]
[ECO "E24"]
[WhiteElo "2068"]
[BlackElo "1815"]
[Annotator "NA RC"]
[PlyCount "101"]
[EventDate "2024.12.27"]
[EventType "swiss"]
[EventCountry "GER"]
[SourceTitle "playchess.com"]
[Source "ChessBase"]
[SourceQuality "1"]
[TimeControl "40/5400+30:1800+30"]

1. d4 {[%emt 0:00:01]} Nf6 {[%emt 0:00:14]} 2. c4 {[%emt 0:00:06]} e6 {[%emt 0:00:06]} 3. Nc3 {[%emt 0:00:18]} Bb4 {[%emt 0:02:41]} 4. a3 {[%emt 0:00:10]} Bxc3+ {[%emt 0:00:09]} 5. bxc3 {[%emt 0:00:04]} b6 {[%emt 0:02:03]} 6. f3 {[%emt 0:00:08]} O-O {[%emt 0:06:01]} 7. e4 {[%emt 0:00:08] E24: Nimzo-Indian: Sämisch: Unusual Black 5th moves and 5...c5 sidelines.} d6 {[%emt 0:02:58] 7...Ne8 might become the main line.} 8. Bg5 {[%emt 0:06:59]} Nbd7 {[%emt 0:06:00]} 9. Bd3 {[%emt 0:04:30]} e5 {[%emt 0:06:01]} 10. Ne2 {[%emt 0:02:28]} c5 {[%emt 0:06:52]} 11. d5 {[%emt 0:01:22]} Re8 {[%emt 0:06:50]} 12. O-O {[%emt 0:01:21]} Nf8 {[%emt 0:00:46]} 13. f4 $146 {[%emt 0:09:07]} ({Predecessor:} 13. Qd2 h6 14. Be3 Ng6 15. Kh1 Rb8 16. g4 Nh7 17. Ng3 Ng5 18. Nf5 {½-½ Cora,M (1898)-Bdair,B (2004) Vicenza op 8th 2004 (3)}) 13... exf4 {[%emt 0:14:05]} 14. Rxf4 {[%emt 0:00:16]} Ng6 {[%emt 0:01:41]} (14... N8d7 $1 $11 {remains equal.}) 15. Rf2 {[%emt 0:07:16]} Ne5 {[%emt 0:02:40]} 16. Bxf6 {[%emt 0:01:39]} gxf6 {[%emt 0:00:08]} 17. Ng3 {[%emt 0:05:58]} Kh8 {[%emt 0:02:09]} 18. Be2 {[%emt 0:04:36]} Rg8 {[%emt 0:00:25]} 19. Nh5 {[%emt 0:04:55] [#]} f5 $2 {[%emt 0:01:57]} 20. exf5 {[%emt 0:02:00]} Qg5 {[%emt 0:08:12]} 21. Qc1 {[%emt 0:01:06]} Ba6 {[%emt 0:05:47]} 22. Qxg5 {[%emt 0:04:35]} Rxg5 {[%emt 0:01:58]} 23. h4 {[%emt 0:00:22]} Rgg8 {[%emt 0:22:17]} 24. Rf4 {[%emt 0:00:03]} h6 {[%emt 0:00:00]} 25. Kh2 {[%emt 0:02:27]} Rge8 {[%emt 0:00:00]} 26. Nf6 {[%emt 0:08:17]} Re7 {[%emt 0:00:00]} 27. Bf1 {[%emt 0:02:02]} Rd8 {[%emt 0:00:00]} 28. Kh3 {[%emt 0:01:20]} Nd7 {[%emt 0:00:00] [#]} 29. Ne4 $1 {[%emt 0:03:44]} Ne5 {[%emt 0:00:00]} 30. Ng3 {[%emt 0:05:13]} Rde8 {[%emt 0:00:00]} 31. f6 {[%emt 0:01:37]} Ng6 {[%emt 0:00:00]} 32. fxe7 {[%emt 0:08:32]} Nxf4+ {[%emt 0:00:00]} 33. Kh2 {[%emt 0:00:16]} Rxe7 {[%emt 0:00:00]} 34. Nf5 {[%emt 0:00:01]} Re5 {[%emt 0:00:00]} 35. Nxd6 {[%emt 0:00:05]} Kg7 {[%emt 0:00:00]} 36. g3 {[%emt 0:02:16]} Nh5 {[%emt 0:01:13]} 37. Bd3 {[%emt 0:00:46]} Kf6 {[%emt 0:00:59]} 38. Rf1+ {[%emt 0:01:35]} Ke7 {[%emt 0:00:06]} 39. Nf5+ {[%emt 0:00:14]} Ke8 {[%emt 0:00:30]} 40. g4 {[%emt 0:02:44]} Nf6 {[%emt 0:00:19]} 41. Nxh6 {[%emt 0:34:24]} Nxd5 {[%emt 0:33:43]} 42. Nxf7 {[%emt 0:02:55]} Re3 {[%emt 0:00:00]} 43. Bg6 {[%emt 0:00:00]} Re2+ {[%emt 0:00:00]} 44. Kg3 {[%emt 0:00:00]} Ne3 {[%emt 0:00:00]} 45. Rf4 {[%emt 0:00:00]} Ke7 {[%emt 0:00:00]} 46. Re4+ {[%emt 0:00:00]} Kf6 {[%emt 0:04:40]} 47. h5 {[%emt 0:00:00]} Nf1+ {[%emt 0:00:00]} 48. Kf3 {[%emt 0:00:00]} Nd2+ {[%emt 0:00:00]} 49. Kxe2 {[%emt 0:00:00]} Nxe4 {[%emt 0:00:00]} 50. Ke3 {[%emt 0:00:00]} Bxc4 {[%emt 0:00:00]} 51. Kxe4 $18 {[%emt 0:00:00]} 1-0